bitfinex-derivatives/quotes_ETHF0:USTF0_20250212
["timestamp","ask_amount","ask_price","bid_price","bid_amount"]
[1739322111619,4.37281686,2613.3,2613.0,1.1593]
[1739322112808,4.37281686,2613.3,2613.2,3.2078]
[1739322115016,0.00573998,2613.4,2613.2,7.70458618]
[1739322115315,0.5754,2613.9,2613.3,1.23822643]
[1739322115516,0.5754,2613.9,2613.0,1.46535787]
[1739322115517,20.054,2614.0,2613.7,3.2078]
[1739322115718,0.6091,2614.2,2613.8,0.5614]
[1739322115921,1.1656,2614.4,2614.0,3.2078]
[1739322115922,0.5754,2614.4,2614.0,3.2078]
[1739322116219,3.2078,2615.0,2614.0,3.2078]
[1739322116220,3.98987239,2614.3,2614.0,3.2078]
[1739322116418,3.98987239,2614.3,2614.2,3.14087956]
[1739322116613,0.00573998,2614.5,2614.2,3.14087956]
[1739322116811,0.00573998,2614.5,2614.3,3.2078]
[1739322117017,0.00573998,2614.5,2614.4,40.8]
[1739322118420,4.31369697,2614.5,2614.3,3.2078]
[1739322118615,0.5977,2614.4,2614.3,3.2078]
[1739322119017,4.59237849,2614.4,2614.3,3.2078]
[1739322119520,4.59237849,2614.4,2614.0,44.0078]
[1739322121926,4.59237849,2614.4,2614.0,3.2078]
[1739322122417,5.19877849,2614.4,2614.0,3.2078]
[1739322123922,6.33437849,2614.4,2614.0,3.2078]
[1739322124118,3.99467849,2614.4,2614.3,3.2078]
[1739322124314,0.00573998,2614.5,2614.3,3.2078]
[1739322124729,0.00573998,2614.5,2614.4,0.5761]
[1739322125530,0.00573998,2614.5,2614.4,41.3761]
[1739322125917,1.1071,2615.3,2614.4,47.3761]
[1739322126227,1.742,2615.8,2615.2,3.2078]
[1739322126420,3.20793093,2615.9,2615.2,3.2078]
[1739322126622,4.14456077,2615.7,2615.2,3.2078]
[1739322127024,4.24186176,2615.8,2615.2,3.2078]
[1739322127325,0.00573998,2615.7,2615.2,3.21353998]
[1739322127726,4.24186176,2615.6,2615.2,3.21353998]
[1739322130830,0.00573998,2615.7,2615.3,40.8]
[1739322133032,0.00573998,2615.7,2615.2,3.21353998]
[1739322133234,0.00573998,2615.7,2615.5,3.2078]
[1739322133639,0.00573998,2615.7,2615.6,40.8]
[1739322134146,2.9368,2616.3,2615.6,40.8]
[1739322134640,4.11218537,2616.2,2615.6,40.8]
[1739322134830,1.1958,2616.3,2615.8,3.2078]
[1739322135231,1.20153998,2616.3,2615.8,3.2078]
[1739322137044,7.30914409,2616.2,2615.8,3.2078]
[1739322137242,7.30914409,2616.2,2615.4,3.2078]
[1739322137443,1.741,2616.1,2615.4,3.2078]
[1739322137941,4.35532614,2616.0,2615.4,3.2078]
[1739322141340,3.27306472,2615.9,2615.3,40.8]
[1739322141543,0.5969,2615.8,2615.3,40.8]
[1739322141744,5.25489602,2615.8,2615.3,40.8]
[1739322142038,3.2078,2615.6,2615.3,40.8]
[1739322142242,2.3282,2615.5,2615.2,0.00573998]
[1739322142543,6.30413686,2615.5,2614.8,3.2078]
[1739322142737,6.30413686,2615.5,2614.9,40.8]
[1739322142931,6.30413686,2615.5,2614.8,3.2078]
[1739322142932,3.2078,2615.2,2614.8,3.2078]
[1739322143139,0.572,2615.1,2614.8,3.2078]
[1739322143338,4.59394155,2615.1,2614.8,3.2078]
[1739322143544,4.59394155,2615.1,2614.8,44.0078]
[1739322143745,5.17794155,2615.1,2614.8,44.0078]
[1739322144348,5.17794155,2615.1,2614.8,40.8]
[1739322144542,3.2078,2614.9,2614.8,40.8]
[1739322144844,4.9488,2614.9,2614.8,40.8]
[1739322145038,15.04463704,2614.9,2613.9,3.2078]
[1739322145342,3.2078,2614.3,2613.3,4.3929]
[1739322145646,2.3197,2614.2,2613.7,40.8]
[1739322145850,0.5628,2614.1,2613.7,40.8]
[1739322146150,1.1512,2614.1,2613.7,40.8]
[1739322146443,3.9949326,2614.0,2613.7,40.8]
[1739322147239,7.2027326,2614.0,2613.7,40.8]
[1739322148035,7.2027326,2614.0,2613.6,0.00573998]
[1739322148233,11.21855536,2614.0,2613.6,0.00573998]
[1739322148442,3.2078,2613.7,2613.6,0.00573998]
[1739322148948,7.40747305,2613.7,2613.6,0.00573998]
[1739322150347,7.47279487,2613.7,2613.1,3.2078]
[1739322150547,1.741,2613.6,2613.1,3.2078]
[1739322151043,7.22362276,2613.4,2612.8,3.2078]
[1739322151254,0.5669,2613.3,2612.8,3.2078]
[1739322151443,0.5669,2613.3,2612.8,3.21353998]
[1739322151444,4.79537195,2613.3,2612.8,3.21353998]
[1739322151644,4.79537195,2613.3,2612.9,40.8]
[1739322153344,5.40747195,2613.3,2612.9,40.8]
[1739322153849,7.14947195,2613.3,2612.9,40.8]
[1739322154541,5.40747195,2613.3,2612.9,40.8]
[1739322154847,6.53737195,2613.3,2612.9,40.8]
[1739322155634,5.97047195,2613.3,2612.9,40.8]
[1739322155836,5.97047195,2613.3,2613.2,3.2078]
[1739322156138,1.742,2613.6,2613.2,3.2078]
[1739322156338,0.5632,2613.7,2613.2,3.2078]
[1739322156339,2.3052,2613.7,2613.2,3.2078]
[1739322156646,4.21044213,2613.6,2613.3,40.8]
[1739322158248,4.21044213,2613.6,2612.9,3.8127]
[1739322158843,4.21044213,2613.6,2613.0,40.8]
[1739322160243,3.2078,2613.5,2612.8,0.00573998]
[1739322160745,5.02773148,2613.4,2612.9,40.8]
[1739322160942,4.96240225,2613.4,2612.9,40.8]
[1739322161649,3.2078,2613.2,2612.8,0.00573998]
[1739322161840,1.742,2613.1,2612.8,0.00573998]
[1739322162037,0.5844,2613.0,2612.8,0.00573998]
[1739322162552,4.05033277,2612.9,2612.8,0.00573998]
[1739322163143,4.25025423,2613.0,2612.8,0.00573998]
[1739322163448,1.742,2613.1,2612.8,0.00573998]
[1739322163750,4.25025423,2613.0,2612.8,0.00573998]
[1739322165041,4.25025423,2613.0,2612.9,3.2078]
[1739322165242,1.742,2613.3,2612.9,3.7801]
[1739322165243,4.3027943,2613.1,2612.9,3.7801]
[1739322165443,1.742,2613.3,2612.9,3.7801]
[1739322165750,4.3027943,2613.2,2612.9,3.7801]
[1739322165946,1.742,2613.3,2612.9,3.7801]
[1739322167347,1.742,2613.3,2613.0,0.47163217]
[1739322167548,3.2078,2613.7,2613.1,0.5584]
[1739322167744,4.9498,2613.7,2613.3,3.2078]
[1739322167950,4.26644645,2613.6,2613.3,3.2078]
[1739322168644,3.2078,2614.0,2613.3,3.2078]
[1739322168852,3.2078,2614.0,2613.4,0.47184483]
[1739322169047,4.39992176,2613.9,2613.3,3.2078]
[1739322169350,1.742,2614.1,2613.6,3.2078]
[1739322169651,1.74773998,2614.2,2613.9,3.2078]
[1739322170055,3.99752162,2614.1,2613.9,3.2078]
[1739322170446,3.99752162,2614.1,2614.0,3.2078]
[1739322173151,0.00573998,2614.2,2614.0,3.68113646]
[1739322173450,0.00573998,2614.2,2614.0,3.2078]
[1739322173654,0.00573998,2614.2,2614.1,40.8]
[1739322174445,0.00573998,2614.2,2614.1,44.0078]
[1739322175154,0.00573998,2614.2,2614.1,3.2078]
[1739322176753,0.00573998,2614.2,2613.8,3.7603]
[1739322176958,4.27158546,2614.2,2613.9,0.47382349]
[1739322177156,4.27158546,2614.2,2613.8,3.2078]
[1739322177455,0.00573998,2614.2,2614.1,3.2078]
[1739322179558,0.00573998,2614.2,2614.1,44.0078]
[1739322179857,20.6019,2614.8,2614.1,44.48134164]
[1739322180163,3.99709177,2614.7,2614.4,3.2078]
[1739322181160,3.99709177,2614.7,2614.3,0.00573998]
[1739322181358,3.99709177,2614.7,2614.4,3.2078]
[1739322181763,3.99709177,2614.7,2614.4,44.0078]
[1739322182059,6.34847069,2615.1,2614.4,44.0078]
[1739322182060,4.9488,2615.6,2614.7,0.76494]
[1739322182259,4.9488,2615.6,2615.0,3.2078]
[1739322182260,0.554,2615.5,2615.0,3.2078]
[1739322182458,4.33785079,2615.4,2615.0,3.2078]
[1739322182864,0.554,2615.5,2615.0,3.2078]
[1739322183065,4.33785079,2615.3,2615.0,3.2078]
[1739322183268,4.27407069,2615.9,2615.0,3.2078]
[1739322183269,4.82807069,2615.9,2615.0,3.2078]
[1739322183468,4.33174822,2615.5,2615.3,3.2078]
[1739322183765,0.00573998,2615.5,2615.3,3.2078]
[1739322184760,0.00573998,2615.5,2615.0,3.2078]
[1739322185366,0.00573998,2615.5,2615.3,3.2078]
[1739322185661,0.00573998,2615.5,2615.0,3.2078]
[1739322185866,4.04082364,2615.4,2615.0,3.2078]
[1739322186169,4.04082364,2615.4,2614.8,0.5939]
[1739322186463,0.6042,2615.3,2614.7,3.2078]
[1739322186659,0.5806,2615.2,2614.7,3.2078]
[1739322186862,4.74600052,2615.2,2614.7,3.2078]
[1739322187267,6.48700052,2615.2,2614.7,3.2078]
[1739322187560,9.69480052,2615.2,2614.4,44.0078]
[1739322188067,10.24620052,2615.2,2614.4,44.0078]
[1739322188262,7.03840052,2615.2,2614.7,3.2078]
[1739322189061,7.03840052,2615.2,2614.4,44.0078]
[1739322189263,7.03840052,2615.2,2614.7,3.2078]
[1739322190470,7.03840052,2615.2,2613.3,3.2078]
[1739322190471,7.22390721,2614.8,2613.3,3.2078]
[1739322190761,7.03840052,2615.2,2613.3,3.2078]
[1739322190762,3.2078,2614.2,2613.3,3.2078]
[1739322190964,1.741,2614.1,2613.4,41.4072]
[1739322191162,3.2078,2613.9,2613.4,41.4072]
[1739322191762,3.21353998,2613.9,2613.4,41.41293998]
[1739322192159,3.2078,2613.6,2613.4,40.80573998]
[1739322192365,3.2078,2613.6,2613.4,0.00573998]
[1739322192559,4.05188954,2613.5,2613.4,0.00573998]
[1739322194566,3.2078,2613.6,2613.4,0.00573998]
[1739322194864,4.24085143,2613.5,2613.4,0.00573998]
[1739322195676,5.98185143,2613.5,2613.4,0.00573998]
[1739322197368,5.98185143,2613.5,2612.9,40.8]
[1739322197369,11.98185143,2613.5,2612.9,40.8]
[1739322197564,3.2078,2613.2,2612.3,3.2078]
[1739322197769,4.3475,2613.1,2612.3,3.2078]
[1739322197969,8.69034699,2613.1,2612.3,3.2078]
[1739322198172,8.69034699,2613.1,2612.4,40.8]
[1739322198368,3.2078,2612.8,2612.4,40.8]
[1739322198581,3.2078,2612.5,2611.9,3.2078]
[1739322198776,3.2078,2612.2,2611.8,1.7573]
[1739322199067,6.73207308,2612.7,2611.8,1.7573]
[1739322199068,3.21353998,2612.3,2611.9,40.80573998]
[1739322199273,0.00573998,2612.3,2611.9,40.80573998]
[1739322200571,0.00573998,2612.3,2611.9,44.82184719]
[1739322200780,0.00573998,2612.3,2611.9,48.02964719]
[1739322201475,0.00573998,2612.3,2612.2,4.01610721]
[1739322201673,0.00573998,2612.3,2612.2,7.22390721]
[1739322202074,0.00573998,2612.3,2612.2,48.02390721]
[1739322202576,3.2078,2613.1,2612.2,54.78957721]
[1739322202768,1.742,2613.2,2612.7,3.2078]
[1739322202975,1.742,2613.2,2612.8,1.1868]
[1739322203482,1.1853,2613.6,2612.8,1.1868]
[1739322203672,0.00573998,2613.3,2613.0,3.2078]
[1739322205273,0.00573998,2613.3,2612.8,1.1868]
[1739322205575,0.00573998,2613.3,2613.0,3.2078]
[1739322207677,0.00573998,2613.3,2613.1,40.8]
[1739322209573,0.00573998,2613.3,2613.2,4.78148721]
[1739322209880,20.035,2614.3,2613.4,0.76531]
[1739322210079,20.035,2614.3,2613.7,3.2078]
[1739322210277,4.40205517,2614.2,2613.8,40.8]
[1739322210583,20.035,2614.3,2613.9,4.01610721]
[1739322212985,20.035,2614.3,2614.0,0.558]
[1739322214191,4.0230718,2614.2,2613.8,40.80573998]
[1739322214483,4.0230718,2614.2,2613.8,0.00573998]
[1739322215886,20.035,2614.3,2613.8,0.00573998]
[1739322216484,4.37947825,2614.2,2613.8,0.00573998]
[1739322218092,3.2078,2613.9,2613.8,0.00573998]
[1739322218489,7.35344908,2613.9,2613.0,1.1292]
[1739322218685,3.2078,2613.6,2613.0,1.1292]
[1739322218886,2.2998,2613.5,2613.1,40.8]
[1739322219193,6.44544908,2613.5,2613.1,40.8]
[1739322220593,3.2078,2613.3,2613.0,0.00573998]
[1739322220986,4.20989273,2613.2,2613.0,0.00573998]
[1739322221585,3.2078,2613.3,2613.0,0.00573998]
[1739322221786,4.9498,2613.6,2613.0,4.02184719]
[1739322222090,3.2078,2613.6,2613.1,0.5607]
[1739322222596,1.742,2613.8,2613.3,4.01610721]
[1739322223295,1.742,2613.8,2613.4,0.46870558]
[1739322223498,1.742,2613.8,2613.3,4.01610721]
[1739322223697,1.742,2613.8,2613.5,3.2078]
[1739322224408,1.1291,2614.2,2613.6,4.01610721]
[1739322225100,0.5556,2614.2,2613.6,4.01610721]
[1739322225299,23.2428,2614.3,2613.9,3.2078]
[1739322225300,20.035,2614.3,2613.9,3.2078]
[1739322225500,20.035,2614.3,2614.2,4.01610721]
[1739322225802,20.035,2614.3,2614.2,7.22390721]
[1739322226205,20.035,2614.3,2614.2,48.02390721]
[1739322227202,20.035,2614.3,2614.2,44.0078]
[1739322227602,0.00573998,2614.4,2614.2,44.0078]
[1739322228607,0.00573998,2614.4,2614.2,40.8]
[1739322229096,0.00573998,2614.4,2614.2,44.0078]
[1739322230100,0.00573998,2614.4,2614.2,40.8]
[1739322230501,0.00573998,2614.4,2614.2,44.0078]
[1739322231296,0.00573998,2614.4,2614.2,40.8]
[1739322234505,0.00573998,2614.4,2614.2,44.0078]
[1739322237105,0.00573998,2614.4,2614.2,40.8]
[1739322237710,0.00573998,2614.4,2613.9,3.2078]
[1739322237906,4.40064033,2614.3,2613.7,0.5993]
[1739322238206,4.40064033,2614.3,2613.8,40.8]
[1739322239514,3.2078,2614.2,2613.8,40.8]
[1739322239714,0.6011,2614.1,2613.8,40.8]
[1739322240713,3.9896597,2614.0,2613.8,40.8]
[1739322244012,3.2078,2613.9,2613.0,0.00573998]
[1739322244216,3.2078,2613.6,2613.0,0.00573998]
[1739322244411,3.2078,2613.3,2613.0,0.00573998]
[1739322244615,5.44782043,2613.5,2613.1,40.8]
[1739322245016,1.1675,2613.5,2613.1,40.8]
[1739322245216,4.28032043,2613.4,2613.1,40.8]
[1739322245620,4.28032043,2613.4,2613.1,44.0078]
[1739322245817,1.741,2613.6,2613.1,44.0078]
[1739322246216,4.9488,2613.6,2613.1,40.8]
[1739322246416,4.21183465,2613.5,2613.1,40.8]
[1739322246611,4.9488,2613.6,2613.1,40.8]
[1739322246811,3.2078,2614.0,2613.2,5.04017823]
[1739322247016,3.2078,2614.0,2613.4,3.2078]
[1739322247219,7.51876822,2614.0,2613.5,0.46928549]
[1739322247413,7.51876822,2614.0,2613.5,0.6009]
[1739322247619,0.5682,2614.3,2613.7,3.2078]
[1739322247620,3.776,2614.3,2613.7,3.2078]
[1739322247823,3.776,2614.3,2613.8,1.02400999]
[1739322248013,3.776,2614.3,2613.8,0.5548]
[1739322249221,0.5682,2614.3,2613.8,0.5548]
[1739322249414,1.741,2614.5,2613.9,0.46930732]
[1739322249625,1.741,2614.5,2613.8,5.16900721]
[1739322249823,1.741,2614.5,2613.9,0.46930147]
[1739322250022,1.741,2614.5,2614.0,41.26930147]
[1739322250223,1.741,2614.5,2614.0,40.8]
[1739322250725,4.28556383,2614.3,2614.0,40.8]
[1739322251220,1.741,2614.5,2614.0,40.8]
[1739322251725,0.5645,2614.7,2614.1,0.46970851]
[1739322251926,0.5645,2614.7,2614.2,0.46970851]
[1739322252128,0.5645,2614.7,2614.0,44.0078]
[1739322252319,0.5645,2614.7,2614.1,0.46977238]
[1739322252526,0.5645,2614.7,2614.2,0.46977238]
[1739322252828,0.5645,2614.7,2614.0,44.0078]
[1739322253025,0.5645,2614.7,2614.1,0.46975742]
[1739322253230,0.5645,2614.7,2614.2,0.46975742]
[1739322253528,0.5645,2614.7,2614.0,44.0078]
[1739322253717,0.5645,2614.7,2614.1,0.46988778]
[1739322253923,0.5645,2614.7,2614.2,0.46988778]
[1739322254125,0.5645,2614.7,2614.0,44.0078]
[1739322254327,0.5645,2614.7,2614.1,0.46983468]
[1739322254632,0.5645,2614.7,2614.2,0.46983468]
[1739322254832,0.5645,2614.7,2614.3,0.46983468]
[1739322255132,0.5645,2614.7,2614.3,3.67763468]
[1739322255429,4.60880721,2615.4,2614.3,3.67763468]
[1739322255430,1.741,2615.0,2614.3,3.67763468]
[1739322256424,1.741,2615.0,2614.3,3.67757196]
[1739322257132,1.1684,2615.3,2614.4,0.76501]
[1739322257133,0.5731,2615.3,2614.4,0.76501]
[1739322257332,0.5731,2615.3,2614.6,7.98886721]
[1739322257629,0.5731,2615.3,2614.7,1.03777196]
[1739322257830,0.5731,2615.3,2614.8,0.46977196]
[1739322258130,7.52984997,2615.2,2614.7,40.8]
[1739322258322,8.12514997,2615.2,2614.8,0.00573998]
[1739322258728,4.91734997,2615.2,2614.8,0.00573998]
[1739322260025,2.32083998,2615.3,2614.8,0.00573998]
[1739322260229,0.57883998,2615.3,2615.0,3.2078]
[1739322260533,0.00573998,2615.3,2615.0,3.2078]
[1739322260833,0.00573998,2615.3,2615.1,0.6022]
[1739322261424,4.02742297,2615.2,2615.0,3.2078]
[1739322261927,4.02742297,2615.2,2614.9,0.57]
[1739322264524,0.00573998,2615.3,2614.9,0.57]
[1739322266030,4.053047,2615.2,2614.8,0.00573998]
[1739322266233,1.18,2615.1,2614.8,0.00573998]
[1739322266635,4.30341626,2615.0,2614.8,0.00573998]
[1739322266839,4.30341626,2615.0,2614.8,0.60703998]
[1739322267131,3.2078,2615.2,2614.8,0.60703998]
[1739322267633,0.00573998,2615.3,2614.9,3.2078]
[1739322268028,4.32626623,2615.1,2614.9,3.2078]
[1739322268226,4.32626623,2615.2,2614.8,0.00573998]
[1739322268533,3.2078,2615.0,2614.8,0.00573998]
[1739322268828,1.7856,2614.9,2614.3,3.2078]
[1739322269028,5.94097934,2614.9,2614.3,3.2078]
[1739322269432,5.94097934,2614.9,2614.3,44.0078]
[1739322269739,3.2078,2614.7,2614.3,40.8]
[1739322270236,4.41835127,2614.6,2614.3,40.8]
[1739322270435,3.2078,2614.4,2614.3,40.8]
[1739322270828,3.2078,2614.4,2614.2,0.00573998]
[1739322270829,7.48300861,2614.4,2614.2,0.00573998]
[1739322271130,7.48300861,2614.4,2613.7,3.7775]
[1739322271131,1.1699,2614.3,2613.7,3.2078]
[1739322271431,4.1347176,2614.2,2613.8,40.8]
[1739322274735,5.8767176,2614.2,2613.8,40.8]
[1739322274939,5.8767176,2614.2,2613.8,41.3771]
[1739322275734,1.1699,2614.3,2613.9,0.5574]
[1739322275931,3.2078,2614.6,2614.0,4.01610721]
[1739322276236,3.2078,2614.6,2614.1,0.46890864]
[1739322276431,3.2078,2614.6,2613.9,3.7652]
[1739322276636,4.14476518,2614.5,2613.9,0.5574]
[1739322276832,4.14476518,2614.5,2614.2,40.8]
[1739322277036,0.5865,2614.4,2614.2,40.8]
[1739322277640,4.14476518,2614.3,2614.2,40.8]
[1739322278836,4.14476518,2614.3,2613.7,0.00573998]
[1739322278837,7.35256518,2614.3,2613.7,0.00573998]
[1739322279037,0.5523,2614.2,2613.7,0.00573998]
[1739322279234,1.741,2614.1,2613.7,0.00573998]
[1739322279434,5.85052674,2614.1,2613.8,40.8]
[1739322281440,2.2933,2614.2,2613.8,40.8]
[1739322282637,3.2078,2614.0,2613.8,40.8]
[1739322283140,4.2111513,2613.9,2613.8,40.8]
[1739322284537,4.2111513,2613.9,2613.7,0.00573998]
[1739322284744,0.5916,2613.8,2613.7,0.00573998]
[1739322285236,4.77206998,2613.8,2613.7,0.00573998]
[1739322286241,3.2078,2614.0,2613.7,0.00573998]
[1739322286642,4.19287028,2613.9,2613.7,0.00573998]
[1739322286944,1.741,2614.1,2613.7,0.00573998]
[1739322287337,3.2078,2614.3,2613.7,0.00573998]
[1739322287533,3.2078,2614.3,2613.7,4.78707719]
[1739322287737,1.741,2614.5,2613.9,3.2078]
[1739322288045,1.741,2614.5,2614.0,4.59830721]
[1739322288247,1.741,2614.5,2614.1,0.5556]
[1739322288544,3.2078,2614.8,2614.1,1.1473]
[1739322288743,1.741,2614.7,2614.1,1.1473]
[1739322288935,6.14359524,2614.7,2614.1,1.1473]
[1739322290543,6.14359524,2614.7,2614.2,40.8]
[1739322291142,3.2078,2614.5,2614.2,40.8]
[1739322291536,4.38396481,2614.4,2613.7,0.00573998]
[1739322291742,3.2078,2614.0,2613.7,0.00573998]
[1739322291953,3.2078,2614.0,2613.7,40.80573998]
[1739322292142,4.38396481,2613.9,2613.7,0.00573998]
[1739322292641,9.16526202,2613.9,2613.7,0.00573998]
[1739322292842,8.40007202,2613.9,2613.7,0.00573998]
[1739322293748,0.83052952,2613.8,2613.1,40.8]
[1739322293954,3.2078,2613.3,2613.1,40.8]
[1739322294142,4.9488,2613.3,2613.1,40.8]
[1739322294444,4.20407974,2613.2,2612.9,1.1217]
[1739322294943,4.20407974,2613.2,2613.0,40.8]
[1739322297647,0.00573998,2613.3,2613.0,44.0078]
[1739322297848,0.00573998,2613.3,2613.1,0.47013142]
[1739322298146,0.00573998,2613.3,2613.2,0.47033476]
[1739322298346,1.741,2613.8,2613.2,0.47033476]
[1739322298550,1.741,2613.8,2613.4,3.2078]
[1739322298743,1.741,2613.8,2613.5,41.86303476]
[1739322298943,1.741,2613.8,2613.5,41.3927]
[1739322299144,3.2078,2614.0,2613.5,41.3927]
[1739322299342,3.2078,2614.0,2613.6,1.07472539]
[1739322299543,3.2078,2614.0,2613.6,0.6044]
[1739322299749,3.21353998,2614.0,2613.6,0.6044]
[1739322299951,0.00573998,2614.0,2613.7,3.6782252]
[1739322300148,0.00573998,2614.0,2613.8,0.4704262]
[1739322300448,0.00573998,2614.0,2613.6,0.6044]
[1739322300645,0.00573998,2614.0,2613.7,3.6782824]
[1739322300853,0.00573998,2614.0,2613.7,3.2078]
[1739322301053,0.00573998,2614.0,2613.8,0.4705283]
[1739322301237,0.00573998,2614.0,2613.7,7.22390721]
[1739322301238,3.2078,2615.1,2613.9,0.4705283]
[1739322301441,21.78,2614.9,2614.3,3.2078]
[1739322301644,4.40100679,2614.8,2614.4,1.1598]
[1739322303742,7.60880679,2614.8,2614.4,1.1598]
[1739322304056,4.40100679,2614.8,2614.4,1.1598]
[1739322304257,4.40100679,2614.8,2614.5,40.8]
[1739322306047,20.04473998,2614.9,2614.5,40.8]
[1739322307456,20.04473998,2614.9,2614.6,3.2078]
[1739322308153,0.00573998,2614.9,2614.8,4.01610721]
[1739322308363,0.00573998,2614.9,2614.8,4.48432698]
[1739322308656,2.2996,2615.6,2614.8,4.01610721]
[1739322308961,1.741,2615.6,2615.1,3.2078]
[1739322309162,1.741,2615.6,2615.2,1.1297]
[1739322309363,3.2078,2615.7,2615.2,1.1297]
[1739322309557,3.2078,2615.7,2615.2,1.7094]
[1739322309753,4.18012801,2615.6,2615.2,4.9172]
[1739322309962,0.00573998,2615.7,2615.5,3.2078]
[1739322311158,0.00573998,2615.7,2615.2,1.13543998]
[1739322311357,4.36547674,2615.6,2615.2,1.13543998]
[1739322312251,4.36547674,2615.6,2615.2,0.00573998]
[1739322312457,4.95237674,2615.6,2615.2,0.00573998]
[1739322312755,4.9488,2615.5,2615.2,0.00573998]
[1739322313057,6.1264,2615.5,2615.2,0.00573998]
[1739322313263,4.39517415,2615.4,2615.2,0.00573998]
[1739322313460,2.3078,2615.5,2615.2,0.00573998]
[1739322314458,4.23889753,2615.4,2615.2,0.00573998]
[1739322314958,2.3078,2615.5,2615.2,0.00573998]
[1739322315354,4.02534226,2615.4,2615.2,0.00573998]
[1739322320164,2.3078,2615.5,2615.2,0.00573998]
[1739322322667,4.19048597,2615.4,2615.2,0.00573998]
[1739322322869,5.5156,2615.5,2615.2,0.00573998]
[1739322323366,2.3078,2615.5,2615.2,3.21353998]
[1739322323571,0.5668,2615.5,2615.2,3.21353998]
[1739322323773,0.00573998,2615.7,2615.3,0.76476]
[1739322323976,0.00573998,2615.7,2615.4,3.1371948]
[1739322324174,0.00573998,2615.7,2615.4,3.9019248]
[1739322324380,0.00573998,2615.7,2615.4,3.1371948]
[1739322324874,0.00573998,2615.7,2615.5,40.8]
[1739322325569,4.26345891,2615.6,2615.5,40.8]
[1739322325768,0.00573998,2615.7,2615.5,40.8]
[1739322326072,0.00573998,2615.7,2615.5,44.0078]
[1739322326573,20.037,2616.1,2615.5,44.0078]
[1739322326778,20.037,2616.1,2615.9,0.76459]
[1739322326979,20.037,2616.1,2615.8,3.2078]
[1739322327470,20.037,2616.1,2615.8,3.97241]
[1739322327677,20.037,2616.1,2615.8,3.2078]
[1739322328871,4.00924468,2616.0,2615.8,3.2078]
[1739322329074,1.74,2615.9,2615.2,0.00573998]
[1739322329276,3.2078,2615.7,2615.2,0.00573998]
[1739322329674,4.14603906,2615.6,2615.2,0.00573998]
[1739322331377,3.2078,2615.4,2615.2,0.00573998]
[1739322331581,1.74,2615.3,2615.2,0.00573998]
[1739322331778,6.07932246,2615.3,2615.2,0.00573998]
[1739322332477,1.74,2615.3,2615.2,0.00573998]
[1739322338391,3.8169,2615.7,2615.2,0.00573998]
[1739322338589,3.2078,2615.7,2615.2,0.77052998]
[1739322338882,3.2078,2615.7,2615.2,0.00573998]
[1739322339083,3.2078,2615.7,2615.3,0.46875564]
[1739322339285,3.2078,2615.7,2615.2,0.00573998]
[1739322339586,3.2078,2615.7,2615.3,0.46871249]
[1739322339780,3.2078,2615.7,2615.2,0.00573998]
[1739322339977,3.2078,2615.7,2615.3,0.46873538]
[1739322340180,3.2078,2615.7,2615.2,0.00573998]
[1739322340486,3.2078,2615.7,2615.3,0.46873341]
[1739322340686,3.2078,2615.7,2615.2,0.00573998]
[1739322341485,4.12207789,2615.6,2615.2,0.00573998]
[1739322341686,4.69287789,2615.6,2615.2,0.00573998]
[1739322342287,3.2078,2615.4,2615.2,0.00573998]
[1739322342789,0.5931,2615.3,2615.2,0.00573998]
[1739322343886,3.2078,2615.4,2615.2,0.00573998]
[1739322344086,3.2078,2615.7,2615.2,0.00573998]
[1739322344588,4.39543962,2615.6,2615.2,0.00573998]
[1739322344793,4.39543962,2615.6,2615.3,0.46892658]
[1739322344983,4.39543962,2615.6,2615.2,0.00573998]
[1739322345183,4.39543962,2615.6,2615.3,0.46890299]
[1739322345379,4.39543962,2615.6,2615.2,0.00573998]
[1739322345691,2.3248,2615.8,2615.3,3.67669993]
[1739322345896,2.3248,2615.8,2615.4,0.46889993]
[1739322346190,2.3248,2615.8,2615.5,0.5759]
[1739322347690,4.17653235,2615.7,2615.5,0.5759]
[1739322348284,4.17653235,2615.7,2615.2,0.00573998]
[1739322348690,3.2078,2615.5,2615.2,0.00573998]
[1739322348986,0.5773,2615.4,2615.2,0.00573998]
[1739322349184,5.57941606,2615.4,2615.2,0.00573998]
[1739322349880,5.57941606,2615.4,2614.8,40.8]
[1739322350089,3.2078,2615.0,2614.8,40.8]
[1739322350291,0.6072,2614.9,2614.8,40.8]
[1739322350483,4.97243843,2614.9,2614.8,40.8]
[1739322355690,4.97243843,2614.9,2614.6,0.00573998]
[1739322355892,3.2078,2614.7,2614.6,0.00573998]
[1739322356281,7.62585155,2614.7,2614.6,0.00573998]
[1739322357695,7.62585155,2614.7,2614.1,40.8]
[1739322357889,3.2078,2614.4,2614.1,40.8]
[1739322358186,1.74,2614.3,2614.1,40.8]
[1739322358387,5.78061267,2614.3,2614.1,40.8]
[1739322361586,0.57123998,2614.5,2614.1,40.8]
[1739322361788,0.00573998,2614.5,2614.2,0.5928]
[1739322361989,0.00573998,2614.5,2614.3,0.6064]
[1739322364493,0.00573998,2614.5,2614.2,0.5928]
[1739322364699,4.07918866,2614.4,2614.2,0.5928]
[1739322366596,0.00573998,2614.5,2614.3,3.67454843]
[1739322366799,0.00573998,2614.5,2614.3,3.8033]
[1739322367598,0.00573998,2614.5,2614.3,4.56834]
[1739322367899,0.00573998,2614.5,2614.3,3.8033]
[1739322368294,0.00573998,2614.5,2614.3,4.56835]
[1739322368496,0.00573998,2614.5,2614.3,3.8033]
[1739322371094,0.00573998,2614.5,2614.3,3.2078]
[1739322371296,4.42424769,2614.4,2614.3,3.2078]
[1739322372501,4.42424769,2614.4,2614.0,41.3662]
[1739322372502,7.63204769,2614.4,2614.0,41.3662]
[1739322372694,9.37204769,2614.4,2614.0,41.3662]
[1739322373503,9.37204769,2614.4,2614.0,40.8]
[1739322374300,9.37204769,2614.4,2613.9,0.00573998]
[1739322374492,3.2078,2614.0,2613.9,0.00573998]